bitfinex-derivatives/quotes_SOLF0:USTF0_20240924
["timestamp","ask_amount","ask_price","bid_price","bid_amount"]
[1727187427193,80.27006944,146.11,146.01,21.07]
[1727187428289,21.07,146.13,146.01,21.07]
[1727187428787,1.7859,146.14,146.03,21.07]
[1727187429184,1.5829,146.14,146.09,3.4221]
[1727187429390,21.07,146.17,146.09,3.4221]
[1727187429885,21.07,146.17,146.1,3.4221]
[1727187430081,21.07,146.17,146.03,21.07]
[1727187430383,21.04,146.18,146.06,21.04]
[1727187430580,21.04,146.18,146.11,3.4217]
[1727187430879,21.04,146.18,146.07,1.7194]
[1727187431085,21.04,146.18,146.12,3.4215]
[1727187431598,22.9722,146.2,146.08,21.04]
[1727187431792,22.9722,146.2,146.07,1.7194]
[1727187432187,21.04,146.17,146.07,1.7194]
[1727187432593,21.04,146.17,146.07,3.3748]
[1727187433102,21.04,146.15,146.07,1.7194]
[1727187433592,21.04,146.15,146.1,3.4219]
[1727187433990,21.04,146.12,146.0,22.707]
[1727187434189,22.9722,146.2,146.01,1.6288]
[1727187434190,21.04,146.1,146.01,1.6288]
[1727187434590,22.9722,146.2,146.01,1.6288]
[1727187434591,21.04,146.13,146.01,1.6288]
[1727187435194,21.04,146.15,146.01,22.6688]
[1727187435492,21.04,146.15,146.04,21.04]
[1727187435698,21.04,146.15,146.1,3.422]
[1727187436191,21.04,146.13,146.02,21.04]
[1727187436397,21.04,146.11,146.01,1.6288]
[1727187436886,1.5723,146.12,146.0,1.667]
[1727187436887,21.04,146.08,146.0,1.667]
[1727187437088,21.04,146.08,145.97,85.5015]
[1727187437393,0.2034,146.11,145.97,1.7132]
[1727187437394,21.04,146.03,145.97,1.7132]
[1727187438386,21.04,146.03,145.92,22.639]
[1727187438585,21.04,146.03,145.92,4.9949]
[1727187439193,21.04,146.03,145.92,26.0349]
[1727187440891,21.04,146.03,145.97,3.425]
[1727187441199,21.04,146.06,145.97,3.425]
[1727187441387,21.04,146.06,145.98,3.4247]
[1727187441993,21.04,146.01,145.92,3.3959]
[1727187442200,21.04,145.99,145.92,1.7132]
[1727187442398,21.04,145.99,145.94,3.4258]
[1727187442597,21.04,145.96,145.86,1.6955]
[1727187442796,21.04,145.94,145.86,1.6955]
[1727187442995,21.04,145.96,145.86,1.6955]
[1727187443697,21.04,145.96,145.91,3.4265]
[1727187443899,21.04,145.96,145.86,1.6955]
[1727187444902,21.04,145.96,145.9,3.4266]
[1727187445102,21.04,145.96,145.86,1.6955]
[1727187445900,1.8454,145.98,145.88,21.04]
[1727187446709,21.04,146.0,145.88,21.04]
[1727187447018,3.46425015,146.01,145.86,1.6955]
[1727187447195,21.04,145.97,145.86,1.6955]
[1727187447598,21.04,145.99,145.87,21.04]
[1727187448111,2.1413,146.05,145.89,21.04]
[1727187448112,21.04,146.02,145.89,21.04]
[1727187448632,2.1413,146.05,145.86,1.6955]
[1727187448633,21.04,145.99,145.94,3.4258]
[1727187449002,21.04,145.99,145.95,3.4254]
[1727187449506,2.1413,146.05,145.95,3.4254]
[1727187449507,21.04,146.02,145.95,3.4254]
[1727187449806,21.04,146.04,145.92,21.04]
[1727187450007,21.04,146.04,145.93,3.45199492]
[1727187450319,21.04,146.01,145.89,21.04]
[1727187450618,21.04,145.99,145.86,1.6955]
[1727187451210,21.04,145.99,145.93,3.4259]
[1727187451606,21.04,145.99,145.86,1.6955]
[1727187451799,21.04,145.99,145.94,3.4258]
[1727187452208,21.04,145.99,145.96,3.4253]
[1727187452405,21.04,145.99,145.89,21.04]
[1727187452606,21.04,146.01,145.89,21.04]
[1727187453013,21.04,146.01,145.91,21.04]
[1727187453510,21.04,146.01,145.95,3.4255]
[1727187454113,21.04,146.01,145.91,21.04]
[1727187454416,21.04,146.01,145.86,1.6955]
[1727187454417,2.1413,146.05,145.93,21.04]
[1727187454604,2.1413,146.05,146.0,3.4243]
[1727187455003,2.1413,146.05,145.95,21.04]
[1727187456213,1.6738,146.05,145.95,21.04]
[1727187457112,1.6738,146.05,145.99,3.4245]
[1727187457303,1.6738,146.05,145.94,3.2561]
[1727187457304,21.04,146.04,145.94,1.6686]
[1727187457702,21.04,146.04,145.97,3.4251]
[1727187457914,21.04,146.04,145.94,1.6686]
[1727187458417,21.04,146.04,145.98,3.4248]
[1727187458613,21.04,146.04,145.94,1.6686]
[1727187459325,21.04,146.04,145.9,21.04]
[1727187459627,21.04,146.04,145.97,3.4251]
[1727187460015,21.04,146.02,145.9,21.04]
[1727187460221,21.04,146.02,145.95,3.4254]
[1727187460707,21.04,146.02,145.9,21.04]
[1727187461107,21.04,146.04,145.93,21.04]
[1727187461509,21.04,146.04,145.91,21.04]
[1727187462014,21.04,146.04,145.97,3.425]
[1727187462318,21.04,146.04,145.91,21.04]
[1727187462511,21.04,146.04,145.93,21.04]
[1727187463018,21.04,146.04,145.91,21.04]
[1727187463418,1.6738,146.05,145.93,21.04]
[1727187463623,1.6738,146.05,146.0,3.4243]
[1727187464120,1.6738,146.05,145.93,21.04]
[1727187464316,1.6738,146.05,145.9,6.8535]
[1727187464524,22.7138,146.05,145.93,21.04]
[1727187464716,22.7138,146.05,145.94,3.39728939]
[1727187465121,1.6738,146.05,145.95,21.04]
[1727187465423,1.6738,146.05,145.95,24.47634264]
[1727187465620,1.6738,146.05,146.01,3.424]
[1727187465818,1.6738,146.05,145.9,27.8935]
[1727187465819,22.7138,146.05,145.93,21.04]
[1727187466023,22.7138,146.05,145.93,24.42495679]
[1727187466214,22.7138,146.05,145.9,6.8535]
[1727187466215,21.04,146.0,145.89,3.3608]
[1727187466821,21.04,146.0,145.94,3.4257]
[1727187467023,21.04,146.0,145.89,3.3608]
[1727187469422,21.04,146.0,145.92,3.4262]
[1727187469828,0.1952,145.99,145.93,3.426]
[1727187470023,0.1952,145.99,145.89,1.655]
[1727187470432,0.1952,145.99,145.95,3.4254]
[1727187471015,0.1952,145.99,145.89,1.655]
[1727187471215,21.04,145.98,145.89,1.655]
[1727187471621,1.62,145.97,145.89,1.655]
[1727187471820,1.62,145.97,145.92,3.4262]
[1727187472037,1.62,145.97,145.89,1.655]
[1727187472225,1.62,145.97,145.93,3.426]
[1727187472733,1.62,145.97,145.85,21.04]
[1727187472925,21.04,145.94,145.81,3.3246]
[1727187473131,21.04,145.94,145.81,27.84848735]
[1727187474329,21.04,145.94,145.81,24.3646]
[1727187474528,21.04,145.94,145.88,3.4271]
[1727187475439,21.04,145.89,145.7,3.42765117]
[1727187475661,1.7307,145.88,145.77,21.04]
[1727187475930,3.39915271,145.92,145.8,21.04]
[1727187476130,3.39915271,145.92,145.81,1.6237]
[1727187476331,3.39915271,145.92,145.81,3.274]
[1727187476633,22.7561,145.93,145.83,21.04]
[1727187476825,22.7561,145.93,145.87,3.4273]
[1727187477027,22.7561,145.93,145.83,21.04]
[1727187477226,1.7161,145.93,145.81,25.9843]
[1727187477426,22.7561,145.93,145.86,3.4276]
[1727187477828,22.7561,145.93,145.88,3.4272]
[1727187478028,22.7561,145.93,145.81,25.9843]
[1727187478727,22.7561,145.93,145.81,4.9443]
[1727187479729,3.39756202,145.92,145.85,3.4279]
[1727187480243,3.39756202,145.92,145.86,3.4276]
[1727187480437,3.39756202,145.92,145.81,4.9443]
[1727187480634,22.7561,145.93,145.81,4.9443]
[1727187481032,22.7561,145.93,145.83,21.04]
[1727187481739,22.7561,145.93,145.88,3.4271]
[1727187483243,1.7161,145.93,145.83,21.04]
[1727187484435,1.7161,145.93,145.81,4.9443]
[1727187484436,21.04,145.91,145.81,4.9443]
[1727187484630,21.04,145.91,145.84,3.4282]
[1727187484837,21.04,145.89,145.81,4.9443]
[1727187485038,21.04,145.89,145.81,3.274]
[1727187485340,21.04,145.91,145.81,3.274]
[1727187485748,1.7161,145.93,145.81,24.314]
[1727187486141,21.04,145.96,145.84,21.04]
[1727187487743,21.04,145.91,145.81,3.274]
[1727187488146,21.04,145.96,145.82,21.04]
[1727187488334,1.6103,145.98,145.82,21.04]
[1727187488335,21.04,145.93,145.82,21.04]
[1727187488745,21.04,145.93,145.88,3.4271]
[1727187488935,21.04,145.93,145.82,21.04]
[1727187489135,21.04,145.91,145.85,3.4278]
[1727187489650,21.04,145.91,145.84,3.4281]
[1727187489944,21.04,145.86,145.78,1.7696]
[1727187490146,21.04,145.88,145.86,3.4277]
[1727187490449,21.04,145.88,145.79,3.2963]
[1727187491845,21.04,145.86,145.79,3.2963]
[1727187492147,21.04,145.88,145.79,3.2963]
[1727187492454,21.04,145.88,145.83,3.4283]
[1727187493262,21.04,145.88,145.79,3.2963]
[1727187493756,22.5684,145.9,145.79,3.2963]
[1727187493959,21.04,145.88,145.79,3.2963]
[1727187494253,1.5284,145.9,145.87,3.4274]
[1727187494456,1.5284,145.9,145.79,3.2963]
[1727187494655,21.04,145.88,145.79,3.2963]
[1727187494955,21.04,145.86,145.79,3.2963]
[1727187495157,21.04,145.88,145.79,3.2963]
[1727187497059,82.3,145.96,145.79,3.2963]
[1727187497060,21.04,145.93,145.81,21.04]
[1727187497460,1.6182,145.95,145.83,21.04]
[1727187498057,3.43625675,146.0,145.88,21.04]
[1727187498258,21.04,146.01,145.88,24.41163618]
[1727187498462,21.04,145.98,145.93,3.4259]
[1727187498761,24.43358337,145.98,145.89,3.1542]
[1727187498963,21.04,145.96,145.91,3.4265]
[1727187499460,21.04,145.94,145.81,21.04]
[1727187499658,21.04,145.94,145.7,13.7252]
[1727187499659,21.04,145.91,145.82,1.5412]
[1727187500159,21.04,145.91,145.86,3.4275]
[1727187500361,21.04,145.91,145.82,1.5412]
[1727187501063,1.6182,145.95,145.82,1.5412]
[1727187501064,21.04,145.94,145.82,1.5412]
[1727187501458,1.6182,145.95,145.84,21.04]
[1727187501758,1.6182,145.95,145.82,1.5412]
[1727187501759,3.38946827,145.98,145.86,21.04]
[1727187502263,1.5824,146.05,145.86,24.47996434]
[1727187502464,21.04,145.98,145.86,24.47996434]
[1727187502653,21.04,145.98,145.83,21.04]
[1727187502858,21.04,145.96,145.83,21.04]
[1727187503057,21.04,145.96,145.84,3.36967702]
[1727187503664,1.5126,145.95,145.67,6.8642]
[1727187503868,21.04,145.88,145.78,3.1488]
[1727187504069,21.04,145.85,145.78,3.1488]
[1727187504565,21.04,145.85,145.79,3.4292]
[1727187504863,21.04,145.85,145.78,3.1488]
[1727187505067,3.48539313,145.88,145.71,21.04]
[1727187505068,21.04,145.83,145.71,21.04]
[1727187505261,21.04,145.83,145.72,3.1488]
[1727187505668,21.04,145.83,145.79,3.4293]
[1727187506066,21.04,145.85,145.81,3.4288]
[1727187506266,21.04,145.85,145.74,21.04]
[1727187506869,21.04,145.85,145.73,21.04]
[1727187507257,21.04,145.85,145.8,3.429]
[1727187507459,21.04,145.85,145.73,21.04]
[1727187507666,21.04,145.85,145.82,3.4287]
[1727187507854,21.04,145.85,145.75,3.46277873]
[1727187508057,21.04,146.06,145.76,22.5842]
[1727187508267,21.04,145.92,145.78,21.04]
[1727187508673,127.43399656,145.99,145.76,22.5842]
[1727187508674,21.04,145.89,145.76,22.5842]
[1727187508861,21.04,145.91,145.79,21.04]
[1727187509058,21.04,145.91,145.8,3.0949]
[1727187509978,21.04,145.89,145.8,3.0949]
[1727187510968,21.04,145.89,145.85,3.4279]
[1727187511264,21.04,145.89,145.8,3.0949]
[1727187511470,21.04,145.91,145.8,3.0949]
[1727187512163,21.04,145.91,145.87,3.4273]
[1727187512866,21.04,145.91,145.88,3.4272]
[1727187514067,21.04,145.91,145.8,24.1349]
[1727187514374,21.04,145.91,145.8,3.0949]
[1727187515677,21.04,145.91,145.8,24.1349]
[1727187516062,21.04,145.91,145.8,3.0949]
[1727187517072,45.13399656,145.99,145.8,3.0949]
[1727187517267,21.04,145.89,145.8,3.0949]
[1727187517576,21.04,145.91,145.8,3.0949]
[1727187518577,21.04,145.91,145.86,3.4276]
[1727187519068,21.04,145.91,145.8,3.0949]
[1727187519273,21.04,145.88,145.8,3.0949]
[1727187519772,21.04,145.88,145.84,3.428]
[1727187519972,21.04,145.88,145.8,3.0949]
[1727187520272,21.04,145.85,145.8,3.0949]
[1727187521179,21.04,145.85,145.8,1.5615]
[1727187521380,21.04,145.9,145.86,3.4277]
[1727187521580,21.04,145.9,145.8,1.5615]
[1727187521968,21.04,145.92,145.8,22.6015]
[1727187522170,21.04,145.92,145.8,1.5615]
[1727187522479,21.04,145.92,145.86,3.4277]
[1727187522974,21.04,145.92,145.8,1.5615]
[1727187523978,21.04,145.92,145.88,3.4271]
[1727187524275,21.04,145.95,145.82,21.04]
[1727187524664,21.04,145.95,145.89,3.4269]
[1727187524872,21.04,145.95,145.85,3.44202016]
[1727187525069,21.04,145.97,145.86,2.9362]
[1727187525267,21.04,145.97,145.87,1.3889]
[1727187525872,21.04,145.99,145.87,1.3889]
[1727187527075,21.04,145.99,145.95,3.4255]
[1727187528269,21.04,145.99,145.87,1.3889]
[1727187528481,21.04,146.02,145.91,21.04]
[1727187528778,21.04,146.02,145.99,3.4245]
[1727187528972,21.04,146.04,145.94,3.38473135]
[1727187529283,21.04,146.04,145.95,2.8323]
[1727187529468,21.04,146.04,145.99,3.4245]
[1727187529671,21.04,146.01,145.95,2.8323]
[1727187529979,21.04,146.01,145.96,3.4252]
[1727187530569,21.04,146.06,145.95,3.4255]
[1727187530570,21.04,145.99,145.95,3.4255]
[1727187530770,21.04,145.99,145.89,2.8849]
[1727187532173,21.04,145.99,145.96,3.4253]
[1727187532580,21.04,145.99,145.95,3.4254]
[1727187533574,21.04,145.99,145.89,2.8849]
[1727187533978,21.04,146.02,145.9,21.04]
[1727187534280,82.28,146.09,145.9,21.04]
[1727187534281,21.04,146.04,145.9,21.04]
[1727187534674,21.04,146.04,145.98,3.4248]
[1727187536588,21.04,146.04,145.97,3.425]
[1727187536980,21.04,146.04,145.94,3.34647543]
[1727187537182,21.04,146.01,145.9,21.04]
[1727187538282,21.04,146.04,145.92,21.04]
[1727187538679,21.04,146.04,145.99,3.4245]
[1727187539979,21.04,146.02,145.89,23.9249]
[1727187540689,21.04,146.02,145.98,3.4248]
[1727187540878,21.04,146.04,145.98,3.4248]
[1727187541077,21.04,146.04,145.89,23.9249]
[1727187541284,21.04,146.06,145.89,2.8849]
[1727187541486,21.04,146.06,145.94,21.04]
[1727187541694,21.04,146.09,145.96,6.8508]
[1727187541984,3.3631381,146.1,145.98,21.04]
[1727187542185,21.04,146.08,145.97,2.8308]
[1727187542380,21.04,146.08,146.02,3.4238]
[1727187542574,21.04,146.08,145.97,2.8308]
[1727187543384,21.04,146.08,146.03,3.4236]
[1727187544084,21.04,146.08,145.97,2.8308]
[1727187544681,21.04,146.08,146.04,3.4234]
[1727187544889,21.04,146.08,145.97,2.8308]
[1727187545194,21.04,146.08,146.02,3.4238]
[1727187545489,21.04,146.08,145.97,2.8308]
[1727187546387,80.2665795,146.11,145.97,2.8308]
[1727187546388,21.04,146.05,145.97,2.8308]
[1727187546584,21.04,146.05,146.01,3.424]
[1727187547483,21.04,146.08,145.97,2.8308]
[1727187547990,21.04,146.08,146.02,3.4239]
[1727187548194,21.04,146.08,145.97,2.8308]
[1727187548495,21.04,146.06,145.97,2.8308]
[1727187549192,21.04,146.06,146.01,3.424]
[1727187549687,21.04,146.03,145.95,1.4698]
[1727187550495,21.04,146.03,146.0,3.4243]
[1727187551596,21.04,146.03,145.95,1.4698]
[1727187551597,21.04,146.06,145.95,1.4698]
[1727187552096,21.04,146.06,146.01,3.4241]
[1727187552292,21.04,146.06,145.95,1.4698]
[1727187552489,21.04,146.09,145.95,1.4698]
[1727187552692,21.04,146.09,145.96,21.04]
[1727187553195,21.04,146.09,146.03,3.4236]
[1727187553797,21.04,146.09,146.04,3.4235]
[1727187553990,21.04,146.06,145.96,21.04]
[1727187554190,21.04,146.06,145.95,1.4698]
[1727187554492,21.04,146.06,146.02,3.424]
[1727187554995,21.04,146.04,145.92,2.8445]
[1727187555200,21.04,146.04,145.93,3.48437546]
[1727187555201,21.04,146.0,145.93,3.48437546]
[1727187555406,21.04,146.02,145.93,3.48437546]
[1727187555694,21.04,146.07,145.95,21.04]
[1727187555893,21.04,146.04,145.93,10.32072145]
[1727187556194,21.04,146.04,146.0,3.4244]
[1727187556393,21.04,146.04,145.93,10.32072145]
[1727187556594,21.04,146.04,145.99,3.4245]
[1727187556794,21.04,146.04,145.93,10.32072145]
[1727187557196,21.04,146.04,145.93,3.46862145]
[1727187557402,21.04,146.04,145.92,23.8845]
[1727187558104,21.04,146.04,145.94,21.04]
[1727187558401,21.04,146.07,146.01,3.4241]
[1727187559101,21.04,146.07,145.95,1.3884]
[1727187559102,21.04,146.04,145.95,1.3884]
[1727187559597,21.04,146.0,145.92,2.8445]
[1727187560499,21.04,146.0,145.94,3.4256]
[1727187560695,21.04,146.0,145.92,2.8445]
[1727187561092,21.04,146.0,145.94,3.4257]
[1727187561294,21.04,146.0,145.92,2.8445]
[1727187561498,21.04,146.0,145.88,1.3884]
[1727187561700,24.39080507,146.04,145.88,1.3884]
[1727187561891,21.04,145.97,145.88,1.3884]
[1727187562097,21.04,145.97,145.93,3.426]
[1727187562594,21.04,145.97,145.88,1.3884]
[1727187563103,24.39080507,146.04,145.94,3.4257]
[1727187563104,21.04,145.99,145.94,3.4257]
[1727187563404,21.04,146.04,145.93,3.44400863]
[1727187563590,21.04,146.04,145.89,21.04]
[1727187564205,21.04,146.04,145.92,21.04]
[1727187564399,21.04,146.04,145.93,2.7396]
[1727187564604,21.04,146.04,145.94,3.37422569]
[1727187565302,21.04,146.04,145.93,2.7396]
[1727187565497,21.04,146.02,145.93,2.7396]
[1727187566304,21.04,146.04,145.93,6.23099344]
[1727187566502,21.04,146.04,145.93,2.7396]
[1727187567901,21.04,146.04,145.97,3.425]
[1727187568497,24.45659813,146.04,145.96,3.4254]
[1727187568708,21.04,146.02,145.96,3.4254]
[1727187568908,21.04,146.04,145.98,3.4248]
[1727187569202,24.49600328,146.04,145.93,2.7396]
[1727187569404,21.04,146.02,145.93,6.1969739]
[1727187569711,21.04,146.04,145.93,6.1969739]
[1727187570308,21.04,146.04,145.93,2.7396]
[1727187570704,21.04,146.04,145.97,3.4249]
[1727187571402,21.04,146.04,145.93,6.08972335]
[1727187571603,21.04,146.07,145.94,21.04]
[1727187571800,21.04,146.07,145.95,1.4675]
[1727187572196,21.04,146.07,145.96,21.04]
[1727187572401,21.04,146.07,146.0,3.4242]
[1727187572601,21.04,146.07,145.95,1.4675]
[1727187573809,21.04,146.07,145.98,3.4248]
[1727187574014,21.04,146.07,145.95,1.4675]
[1727187574416,21.04,146.04,145.98,3.4248]
[1727187575507,21.04,146.04,145.93,6.08972335]
[1727187575508,21.04,146.02,145.93,2.7396]
[1727187576119,21.04,146.04,145.93,6.24316213]
[1727187576416,21.04,146.04,145.93,2.7396]
[1727187576815,21.04,146.04,145.93,6.21165096]
[1727187577120,21.04,146.04,145.99,3.4246]
[1727187577516,21.04,146.04,145.93,6.19135839]
[1727187577717,21.04,146.04,145.97,3.4251]
[1727187577924,21.04,146.04,145.93,2.7396]
[1727187578111,21.04,146.01,145.93,2.7396]
[1727187579920,21.04,146.01,145.96,3.4252]
[1727187580722,21.04,146.01,145.97,3.4251]
[1727187581137,3.46485819,146.06,145.97,3.4251]
[1727187581319,21.04,146.02,145.97,3.4251]
[1727187582326,13.16,145.99,145.95,3.4255]
[1727187582526,13.16,145.97,145.91,1.3458]
[1727187583014,13.16,146.0,145.86,2.7879]
[1727187583215,13.16,146.0,145.78,1.3619]
[1727187583216,13.16,145.92,145.78,1.3619]
[1727187583415,13.16,145.92,145.87,3.4275]
[1727187584026,13.16,145.92,145.82,3.42063836]
[1727187584223,13.16,145.92,145.83,13.16]
[1727187584421,16.62638799,146.0,145.84,3.39253009]
[1727187584422,21.05,145.94,145.84,3.39253009]
[1727187584724,21.05,145.94,145.82,21.05]
[1727187584725,21.05,145.94,145.85,2.7879]
[1727187585220,21.05,145.94,145.89,3.427]
[1727187585721,21.05,145.94,145.88,3.4272]
[1727187585921,21.05,145.94,145.85,2.7879]
[1727187586333,21.05,145.94,145.89,3.4268]
[1727187588318,21.05,145.92,145.85,2.7879]
[1727187588519,21.05,145.92,145.83,3.48542447]
[1727187588732,21.05,145.94,145.82,21.05]
[1727187589429,21.05,145.94,145.83,3.50187809]
[1727187590022,21.05,145.94,145.87,3.4273]
[1727187590331,21.05,145.94,145.83,3.50187809]
[1727187590526,21.05,145.92,145.86,3.4276]
[1727187591526,21.05,145.92,145.87,3.4275]
[1727187592720,21.06,145.92,145.87,3.4275]
[1727187595739,21.06,145.92,145.88,3.4272]
[1727187596025,21.06,145.95,145.8,27.19672405]
[1727187596328,24.48910028,145.95,145.8,27.19672405]
[1727187596928,24.48910028,145.95,145.89,3.4269]
[1727187598121,21.06,145.95,145.85,21.06]
[1727187598430,3.38864903,145.96,145.85,21.06]
[1727187598730,21.06,145.99,145.85,21.06]
[1727187598930,21.06,145.99,145.86,1.3033]
[1727187599237,21.06,145.99,145.91,3.4264]
[1727187599531,24.43082305,145.99,145.88,3.36396691]
[1727187599727,24.43082305,145.99,145.94,3.4257]
[1727187599926,21.06,145.99,145.89,3.48083375]
[1727187600229,82.26,146.02,145.87,23.8987]
[1727187600230,21.06,146.01,145.87,23.8987]
[1727187600439,21.06,145.98,145.88,3.37492812]
[1727187600633,21.06,145.96,145.87,2.8387]
[1727187600836,21.06,145.96,145.93,3.4259]
[1727187601021,3.38006917,145.99,145.88,21.06]
[1727187601228,21.06,146.01,145.88,21.06]
[1727187601436,101.36940827,146.03,145.91,21.06]
[1727187601638,101.36940827,146.03,145.91,24.56208343]
[1727187602020,101.36940827,146.03,145.99,3.4245]
[1727187602225,101.36940827,146.03,145.91,24.56208343]
[1727187602524,80.30940827,146.03,145.91,24.56208343]
[1727187602724,101.36940827,146.03,145.91,24.56208343]
[1727187603335,101.36940827,146.03,145.97,3.425]
[1727187603736,80.30940827,146.03,145.94,21.06]
[1727187603939,80.30940827,146.03,145.95,2.7224]
[1727187604128,80.30940827,146.03,145.95,4.0342]
[1727187604440,21.06,146.08,145.96,21.06]
[1727187605330,3.49570798,146.1,146.03,3.4235]
[1727187605331,24.55570798,146.1,146.03,3.4235]
[1727187605635,24.55570798,146.1,145.96,21.06]
[1727187605636,21.06,146.1,145.96,21.06]
[1727187605835,21.06,146.1,145.99,21.06]
[1727187606031,21.06,146.1,146.0,3.48968046]
[1727187606232,82.26,146.19,146.01,21.06]
[1727187606433,21.06,146.16,146.05,21.06]
[1727187607235,21.06,146.16,146.1,3.4219]
[1727187607441,21.06,146.16,146.05,21.06]
[1727187607642,21.06,146.16,146.02,4.1189]
[1727187607643,21.06,146.14,146.02,25.1789]
[1727187608537,21.06,146.14,146.09,3.4221]
[1727187608842,21.06,146.17,146.06,21.06]
[1727187609029,3.48488412,146.26,146.02,25.1789]
[1727187609030,21.06,146.22,146.09,21.06]
[1727187609341,82.24,146.29,146.1,2.6803]
[1727187609342,21.06,146.19,146.1,2.6803]
[1727187610447,21.06,146.17,146.02,22.4876]
[1727187610637,21.06,146.17,146.03,2.8002]
[1727187610842,21.06,146.15,146.03,2.8002]
[1727187611338,21.06,146.15,146.08,3.4224]
[1727187611542,21.06,146.15,146.03,2.8002]
[1727187611942,21.06,146.12,146.03,2.8002]
[1727187612341,21.03,146.12,146.03,2.8002]
[1727187612541,21.03,146.12,146.05,3.4231]
[1727187612744,21.03,146.12,146.03,2.8002]
[1727187614742,21.03,146.15,146.03,2.8002]
[1727187615646,21.03,146.18,146.06,21.03]
[1727187616148,21.03,146.18,146.1,3.422]
[1727187616347,21.03,146.15,146.04,21.03]
[1727187616540,21.03,146.13,146.03,2.8002]
[1727187617053,21.03,146.11,146.06,3.423]
[1727187617244,21.03,146.13,146.03,2.8002]
[1727187617746,21.03,146.13,146.09,3.4223]
[1727187617947,21.03,146.13,146.03,2.8002]
[1727187618540,21.03,146.13,146.08,3.4224]
[1727187618948,21.03,146.15,146.04,21.03]
[1727187619446,24.53803669,146.15,146.03,2.8002]
[1727187619748,21.03,146.15,146.03,2.8002]
[1727187620145,21.03,146.17,146.04,21.03]
[1727187620656,21.03,146.17,146.09,3.4222]
[1727187621046,21.03,146.17,146.04,21.03]
[1727187622142,21.03,146.22,146.04,21.03]
[1727187622143,21.03,146.15,146.04,21.03]
[1727187622348,21.03,146.13,146.03,2.8002]
[1727187622546,21.03,146.13,146.07,3.4227]
[1727187622850,21.03,146.13,146.03,2.8002]
[1727187623148,21.03,146.13,146.07,3.4226]
[1727187623354,21.03,146.13,146.03,2.8002]
[1727187625052,21.03,146.13,146.07,3.4226]
[1727187625249,21.03,146.13,146.03,2.8002]
[1727187625446,21.03,146.08,145.96,103.21]
[1727187625648,21.03,146.11,145.98,21.03]
[1727187625844,21.03,146.14,146.01,21.03]
[1727187626155,21.03,146.14,146.01,24.40066488]
[1727187627645,21.03,146.14,146.07,3.4226]
[1727187628052,21.03,146.14,146.01,24.40066488]
[1727187628246,21.03,146.14,146.09,3.4223]